Workbook

Sheet Sheet1
C1: Step 1 - exclude features impacted by only one project | G1: Step 2 - in-combination impact exceeds change in adult survival of >0.02 percentage points | O1: Step 3 - existing AESI in-combination (i.e. compensation provided) | S1: Final
A2: Species | B2: SPA | C2: Muir Mhor connectivity | D2: Ossian connectivity | E2: Caledonia connectivity | F2: Step 1 | G2: Breeding population (adults) | H2: Muir Mhor impact | I2: Ossian impact | J2: Caledonia impact | K2: All others impact | L2: Total impact | M2: % change in adult survival | N2: Step 2 | O2: Muir Mhor compensation | P2: Ossian Compensation | Q2: Caledonia Compensation | R2: Step 3 | S2: PVA run for AA? | T2: Notes
A3: Gannet | B3: Fair Isle | C3: Y | D3: Y | E3: Y | F3: Include | G3: 9,654 | H3: 0.5 | I3: 1.0 | J3: 0.7 | K3: 11.3 | L3: =SUM(H3:K3) -> 13.6 | M3: =(L3/G3)*100 -> 0.141 | N3: Include | O3: N | P3: N | Q3: N | R3: Include | S3: Y | T3: UPDATED PVA
A4: Gannet | B4: Flamborough and Filey Coast | C4: Y | D4: Y | E4: Y | F4: Include | G4: 30,466 | H4: 1.4 | I4: 4.4 | J4: 0.4 | K4: 393.1 | L4: 399.2 | M4: 1.310 | N4: Include | O4: N | P4: Y | Q4: N | R4: Exclude | S4: N
A5: Gannet | B5: Forth Islands | C5: Y | D5: Y | E5: Y | F5: Include | G5: 150,518 | H5: 12.2 | I5: 58.0 | J5: 7.9 | K5: 785.7 | L5: 863.7 | M5: 0.574 | N5: Include | O5: Y* | P5: Y | Q5: Y | R5: Exclude | S5: N
A6: Gannet | B6: Hermaness, Saxa Vord and Valla Field | C6: Y | D6: Y | E6: Y | F6: Include | G6: 39,606 | H6: 2.2 | I6: 3.8 | J6: 1.2 | K6: 68.7 | L6: 75.8 | M6: 0.191 | N6: Include | O6: N | P6: N | Q6: N | R6: Include | S6: Y | T6: UPDATED PVA
A7: Gannet | B7: North Rona and Sula Sgeir | C7: Y | D7: Y | E7: Y | F7: Include | G7: 18,990 | H7: 0.3 | I7: 0.8 | J7: 0.4 | K7: 5.2 | L7: 6.7 | M7: 0.035 | N7: Include | O7: N | P7: N | Q7: N | R7: Include | S7: Y | T7: UPDATED PVA
A8: Gannet | B8: Noss | C8: Y | D8: Y | E8: Y | F8: Include | G8: 24,670 | H8: 1.1 | I8: 2.1 | J8: 0.9 | K8: 35.8 | L8: 39.9 | M8: 0.162 | N8: Include | O8: N | P8: N | Q8: N | R8: Include | S8: Y | T8: UPDATED PVA
A9: Gannet | B9: St Kilda | C9: Y | D9: Y | E9: N | F9: Include | G9: 120,580 | H9: 1.1 | I9: 2.6 | J9: 0.0 | K9: 1.2 | L9: 4.9 | M9: 0.004 | N9: Exclude
A10: Gannet | B10: Sule Skerry and Sule Stack | C10: Y | D10: Y | E10: Y | F10: Include | G10: 15,648 | H10: 0.4 | I10: 0.9 | J10: 0.9 | K10: 32.6 | L10: 34.8 | M10: 0.222 | N10: Include | O10: N | P10: N | Q10: N | R10: Include | S10: Y | T10: UPDATED PVA
A11: Guillemot | B11: Buchan Ness to Collieston Coast | C11: Y | D11: Y | E11: Y | F11: Include | G11: 39,440 | H11: 177.0 | I11: 73.7 | J11: 13.3 | K11: 254.7 | L11: 518.7 | M11: 1.315 | N11: Include | O11: Y | P11: Y* | Q11: N | R11: Exclude | S11: N | T11: REMOVED PVA
A12: Guillemot | B12: Calf of Eday | C12: N | D12: N | E12: Y | F12: Exclude
A13: Guillemot | B13: Copinsay | C13: N | D13: N | E13: Y | F13: Exclude
A14: Guillemot | B14: East Caithness Cliffs | C14: N | D14: N | E14: Y | F14: Exclude
A15: Guillemot | B15: Fair Isle | C15: N | D15: N | E15: Y | F15: Exclude
A16: Guillemot | B16: Farne Islands | C16: N | D16: Y | E16: N | F16: Exclude
A17: Guillemot | B17: Forth Islands | C17: N | D17: Y | E17: N | F17: Exclude
A18: Guillemot | B18: Fowlsheugh | C18: N | D18: Y | E18: N | F18: Exclude
A19: Guillemot | B19: Hoy | C19: N | D19: N | E19: Y | F19: Exclude
A20: Guillemot | B20: Marwick Head | C20: N | D20: N | E20: Y | F20: Exclude
A21: Guillemot | B21: North Caithness Cliffs | C21: N | D21: N | E21: Y | F21: Exclude
A22: Guillemot | B22: Rousay | C22: N | D22: N | E22: Y | F22: Exclude
A23: Guillemot | B23: St Abb's Head to Fast Castle | C23: N | D23: Y | E23: N | F23: Exclude
A24: Guillemot | B24: Sule Skerry and Sule Stack | C24: N | D24: N | E24: Y | F24: Exclude
A25: Guillemot | B25: Troup, Pennan and Lion's Heads | C25: Y | D25: Y | E25: Y | F25: Include | G25: 31,893 | H25: 107.2 | I25: 54.1 | J25: 34.1 | K25: 76.4 | L25: =SUM(H25:K25) -> 271.8 | M25: =(L25/G25)*100 -> 0.852 | N25: Include | O25: N | P25: Y | Q25: Y* | R25: Exclude | S25: N
A26: Guillemot | B26: West Westray | C26: N | D26: N | E26: Y | F26: Exclude
A27: Kittiwake | B27: Buchan Ness to Collieston Coast | C27: Y | D27: Y | E27: Y | F27: Include | G27: 22,590 | H27: 11.5 | I27: 6.5 | J27: 2.8 | K27: 70.8 | L27: =SUM(H27:K27) -> 91.6 | M27: =(L27/G27)*100 -> 0.406 | N27: Include | O27: Y | P27: Y | Q27: Y | R27: Exclude | S27: N
A28: Kittiwake | B28: Calf of Eday | C28: N | D28: N | E28: Y | F28: Exclude
A29: Kittiwake | B29: Cape Wrath | C29: Y | D29: N | E29: Y | F29: Include | G29: 6,656 | H29: 0.2 | I29: 0.0 | J29: 0.2 | K29: 4.4 | L29: =SUM(H29:K29) -> 4.8 | M29: =(L29/G29)*100 -> 0.072 | N29: Include | O29: N | P29: N | Q29: N | R29: Include | S29: Y | T29: UPDATED PVA
A30: Kittiwake | B30: Copinsay | C30: N | D30: Y | E30: Y | F30: Include | G30: 592 | H30: 0.0 | I30: 0.1 | J30: 0.1 | K30: 3.8 | L30: 4.0 | M30: =(L30/G30)*100 -> 0.680 | N30: Include | O30: N | P30: N | Q30: N | R30: Include | S30: Y | T30: UPDATED PVA
A31: Kittiwake | B31: East Caithness Cliffs | C31: Y | D31: Y | E31: Y | F31: Include | G31: 48,958 | H31: 4.3 | I31: 4.3 | J31: 18.0 | K31: 210.9 | L31: =SUM(H31:K31) -> 237.5 | M31: =(L31/G31)*100 -> 0.485 | N31: Include | O31: Y | P31: Y | Q31: Y | R31: Exclude | S31: N
A32: Kittiwake | B32: Fair Isle | C32: N | D32: Y | E32: Y | F32: Include | G32: 896 | H32: 0.1 | I32: 0.1 | J32: 0.0 | K32: 4.2 | L32: 4.4 | M32: =(L32/G32)*100 -> 0.490 | N32: Include | O32: N | P32: N | Q32: N | R32: Include | S32: Y | T32: UPDATED PVA
A33: Kittiwake | B33: Farne Islands | C33: Y | D33: Y | E33: Y | F33: Include | G33: 5,790 | H33: 0.6 | I33: 2.1 | J33: 0.1 | K33: 21.7 | L33: =SUM(H33:K33) -> 24.4 | M33: =(L33/G33)*100 -> 0.422 | N33: Include | O33: Y | P33: Y* | Q33: N | R33: Exclude | S33: N
A34: Kittiwake | B34: Flamborough and Filey Coast | C34: N | D34: Y | E34: N | F34: Exclude
A35: Kittiwake | B35: Forth Islands | C35: Y | D35: Y | E35: Y | F35: Include | G35: 9,084 | H35: 1.1 | I35: 1.9 | J35: 0.4 | K35: 45.1 | L35: =SUM(H35:K35) -> 48.5 | M35: =(L35/G35)*100 -> 0.534 | N35: Include | O35: Y | P35: Y | Q35: N | R35: Exclude | S35: N
A36: Kittiwake | B36: Foula | C36: N | D36: N | E36: Y | F36: Exclude
A37: Kittiwake | B37: Fowlsheugh | C37: Y | D37: Y | E37: Y | F37: Include | G37: 30,966 | H37: 7.1 | I37: 9.4 | J37: 2.1 | K37: 123.7 | L37: =SUM(H37:K37) -> 142.4 | M37: =(L37/G37)*100 -> 0.460 | N37: Include | O37: Y | P37: Y | Q37: N | R37: Exclude | S37: N
A38: Kittiwake | B38: Handa | C38: N | D38: N | E38: Y | F38: Exclude
A39: Kittiwake | B39: Hermaness, Saxa Vord and Valla Field | C39: N | D39: N | E39: Y | F39: Exclude
A40: Kittiwake | B40: Hoy | C40: N | D40: N | E40: Y | F40: Exclude
A41: Kittiwake | B41: Marwick Head | C41: N | D41: Y | E41: Y | F41: Include | G41: 1,812 | H41: 0.1 | I41: 0.1 | J41: 0.2 | K41: 3.4 | L41: =SUM(H41:K41) -> 3.8 | M41: =(L41/G41)*100 -> 0.207 | N41: Include | O41: N | P41: N | Q41: N | R41: Include | S41: Y | T41: UPDATED PVA
A42: Kittiwake | B42: North Caithness Cliffs | C42: Y | D42: Y | E42: Y | F42: Include | G42: 11,142 | H42: 0.9 | I42: 0.8 | J42: 2.5 | K42: 57.4 | L42: =SUM(H42:K42) -> 61.6 | M42: =(L42/G42)*100 -> 0.553 | N42: Include | O42: Y | P42: Y | Q42: Y | R42: Exclude | S42: N
A43: Kittiwake | B43: North Rona and Sula Sgeir | C43: N | D43: N | E43: Y | F43: Exclude
A44: Kittiwake | B44: Noss | C44: N | D44: N | E44: Y | F44: Exclude
A45: Kittiwake | B45: Rousay | C45: N | D45: Y | E45: Y | F45: Include | G45: 660 | H45: 0.1 | I45: 0.1 | J45: 0.1 | K45: 9.4 | L45: 9.7 | M45: =(L45/G45)*100 -> 1.473 | N45: Include | O45: N | P45: N | Q45: N | R45: Include | S45: Y | T45: UPDATED PVA
A46: Kittiwake | B46: Shiant Isles | C46: N | D46: N | E46: Y | F46: Exclude
A47: Kittiwake | B47: St Abb's Head to Fast Castle | C47: Y | D47: Y | E47: Y | F47: Include | G47: 9,158 | H47: 0.8 | I47: 2.7 | J47: 0.3 | K47: 34.3 | L47: =SUM(H47:K47) -> 38.1 | M47: =(L47/G47)*100 -> 0.417 | N47: Include | O47: N | P47: Y | Q47: N | R47: Exclude | S47: N
A48: Kittiwake | B48: Sumburgh Head | C48: N | D48: N | E48: Y | F48: Exclude
A49: Kittiwake | B49: Troup, Pennan and Lion's Heads | C49: Y | D49: Y | E49: Y | F49: Include | G49: 21,232 | H49: 6.0 | I49: 3.5 | J49: 7.9 | K49: 86.6 | L49: =SUM(H49:K49) -> 104.0 | M49: =(L49/G49)*100 -> 0.490 | N49: Include | O49: Y | P49: Y | Q49: Y | R49: Exclude | S49: N
A50: Kittiwake | B50: West Westray | C50: Y | D50: N | E50: Y | F50: Include | G50: 4,838 | H50: 0.5 | I50: 0.0 | J50: 0.7 | K50: 54.7 | L50: =SUM(H50:K50) -> 55.9 | M50: =(L50/G50)*100 -> 1.15 | N50: Include | O50: Y | P50: N | Q50: N | R50: Exclude | S50: N
A51: Puffin | B51: Cape Wrath | C51: N | D51: N | E51: Y | F51: Exclude
A52: Puffin | B52: Coquet Island | C52: Y | D52: Y | E52: N | F52: Include | G52: 50,058 | H52: 4.0 | I52: 5.0 | J52: 0.0 | K52: 52.0 | L52: =SUM(H52:K52) -> 61.0 | M52: =(L52/G52)*100 -> 0.122 | N52: Include | O52: N | P52: N | Q52: N | R52: Include | S52: Y | T52: NEW PVA
A53: Puffin | B53: Fair Isle | C53: Y | D53: N | E53: Y | F53: Include | G53: 13,332 | H53: 0.7 | I53: 0.0 | J53: 1.9 | K53: 9.5 | L53: =SUM(H53:K53) -> 12.1 | M53: =(L53/G53)*100 -> 0.091 | N53: Include | O53: N | P53: N | Q53: N | R53: Include | S53: Y | T53: UPDATED PVA
A54: Puffin | B54: Farne Islands | C54: Y | D54: Y | E54: N | F54: Include | G54: 87,504 | H54: 10.6 | I54: 12.1 | J54: 0.0 | K54: 161.5 | L54: =SUM(H54:K54) -> 184.1 | M54: =(L54/G54)*100 -> 0.210 | N54: Include | O54: N | P54: N | Q54: N | R54: Include | S54: Y | T54: NEW PVA
A55: Puffin | B55: Forth Islands | C55: Y | D55: Y | E55: Y | F55: Include | G55: 90,291 | H55: 11.0 | I55: 11.5 | J55: 19.0 | K55: 344.1 | L55: =SUM(H55:K55) -> 385.6 | M55: =(L55/G55)*100 -> 0.427 | N55: Include | O55: Y* | P55: Y* | Q55: N | R55: Include | S55: Y | T55: UPDATED PVA
A56: Puffin | B56: Foula | C56: N | D56: N | E56: Y | F56: Exclude
A57: Puffin | B57: Hoy | C57: Y | D57: N | E57: Y | F57: Include | G57: 722 | H57: 0.1 | I57: 0.0 | J57: 0.3 | K57: 3.1 | L57: =SUM(H57:K57) -> 3.5 | M57: =(L57/G57)*100 -> 0.484 | N57: Include | O57: N | P57: N | Q57: N | R57: Include | S57: Y | T57: UPDATED PVA
A58: Puffin | B58: North Caithness Cliffs | C58: Y | D58: N | E58: Y | F58: Include | G58: 5,438 | H58: 0.4 | I58: 0.0 | J58: 1.7 | K58: 51.9 | L58: =SUM(H58:K58) -> 54.0 | M58: =(L58/G58)*100 -> 0.992 | N58: Include | O58: N | P58: N | Q58: Y* | R58: Include | S58: Y | T58: UPDATED PVA
A59: Puffin | B59: North Rona and Sula Sgeir | C59: N | D59: N | E59: Y | F59: Exclude
A60: Puffin | B60: Noss | C60: N | D60: N | E60: Y | F60: Exclude
A61: Puffin | B61: Sule Skerry and Sule Stack | C61: N | D61: N | E61: Y | F61: Exclude
A62: Razorbill | B62: East Caithness Cliffs | C62: N | D62: N | E62: Y | F62: Exclude
A63: Razorbill | B63: Fair Isle | C63: N | D63: N | E63: Y | F63: Exclude
A64: Razorbill | B64: Forth Islands | C64: N | D64: Y | E64: N | F64: Exclude
A65: Razorbill | B65: Fowlsheugh | C65: Y | D65: Y | E65: N | F65: Include | G65: 18,844 | H65: 10.4 | I65: 4.5 | J65: 0.0 | K65: 94.0 | L65: =SUM(H65:K65) -> 108.9 | M65: =(L65/G65)*100 -> 0.578 | N65: Include | O65: Y | P65: Y | Q65: N | R65: Exclude | S65: N
A66: Razorbill | B66: North Caithness Cliffs | C66: N | D66: N | E66: Y | F66: Exclude
A67: Razorbill | B67: St Abb's Head to Fast Castle | C67: N | D67: Y | E67: N | F67: Exclude
A68: Razorbill | B68: Troup, Pennan and Lion's Heads | C68: Y | D68: Y | E68: Y | F68: Include | G68: 6,054 | H68: 4.4 | I68: 0.9 | J68: 3.0 | K68: 14.9 | L68: =SUM(H68:K68) -> 23.1 | M68: =(L68/G68)*100 -> 0.382 | N68: Include | O68: Y | P68: Y | Q68: N | R68: Exclude | S68: N
A69: Razorbill | B69: West Westray | C69: N | D69: N | E69: Y | F69: Exclude | T69: REMOVED AT STEP 1

Sheet NOTES
A1: Number | B1: Description
A2: 1 | B2: Filter "Step 1" column = "include"
A3: 2 | B3: Filter "Step 2" column = "include"
A4: 3 | B4: Filter "Step 3" column = "include"
A5: 4 | B5: Y* = compensation provided without prejudice in Addtiional Information submission
B6: Values in highlighted boxes have been updated for VERSION 3
